{"text_format":"1","workbook":"xlsx","n_sheets":6,"sheets":["rapot","leger","deskripsi","Ekskul","DUDI","Prestasi"],"not_rendered":{"charts":0,"images":2,"macros":1,"external_links":1,"defined_names":2,"comments":0,"pivot_tables":0},"unopened":[],"bounds":{"document_bytes":16777216,"sheet_cells":100000,"rows_first":2000,"rows_last":500,"rows_between":2000,"halvings":0,"cell_chars":16384,"cell_head_chars":4096},"cells_cut":0,"cells_raw":0,"read":"whole","date_system":"1900"}

{"sheet":"rapot","index":0,"n_rows":79,"n_cols":16,"rows_kept":79,"cut":false,"hidden":false,"merged":[[35,13,35,14],[36,13,36,14],[73,7,73,8],[78,7,78,8],[29,13,29,14],[30,13,30,14],[31,13,31,14],[33,13,33,14],[34,13,34,14],[54,7,54,8],[54,9,54,14],[34,11,34,12],[36,11,36,12],[15,13,15,14],[24,13,24,14],[25,13,25,14],[28,13,28,14],[17,13,17,14],[18,13,18,14],[19,13,19,14],[20,13,20,14],[21,13,21,14],[49,0,49,1],[50,0,50,1],[51,0,51,1],[48,7,48,12],[49,7,49,12],[50,7,50,12],[51,7,51,12],[11,1,11,14],[17,11,17,12],[42,0,42,1],[15,11,15,12],[42,9,42,10],[42,11,42,14],[22,2,22,4],[28,2,28,4],[29,2,29,4],[30,2,30,4],[31,2,31,4],[33,2,33,4],[34,2,34,4],[33,11,33,12],[35,11,35,12],[42,7,42,8],[22,13,22,14],[66,0,66,2],[71,0,71,2],[65,0,65,2],[0,0,0,14],[1,0,1,14],[3,0,3,2],[4,0,4,2],[5,0,5,2],[6,0,6,2],[14,2,15,4],[17,2,17,4],[18,2,18,4],[19,2,19,4],[20,2,20,4],[24,2,24,4],[60,0,60,5],[24,0,24,1],[25,0,25,1],[28,0,28,1],[29,0,29,1],[43,0,43,1],[44,0,44,1],[45,0,45,1],[42,2,42,6],[57,0,57,1],[54,0,54,1],[54,2,54,6],[55,0,55,1],[56,0,56,1],[14,9,14,14],[55,7,55,8],[56,7,56,8],[57,7,57,8],[30,0,30,1],[31,0,31,1],[33,0,33,1],[34,0,34,1],[35,0,35,1],[14,5,14,8],[14,0,15,1],[17,0,17,1],[18,0,18,1],[28,11,28,12],[29,11,29,12],[30,11,30,12],[36,0,36,1],[36,2,36,4],[48,0,48,1],[24,11,24,12],[25,11,25,12],[31,11,31,12],[18,11,18,12],[19,11,19,12],[20,11,20,12],[21,11,21,12],[22,11,22,12],[19,0,19,1],[20,0,20,1],[21,0,21,1],[22,0,22,1],[21,2,21,4],[25,2,25,4]]}
[null,null,null,null,null,null,null,null,null,null,null,null,null,null,null,1]
[]
[]
["Nama Siswa",null,null,": ",{"$f":"VLOOKUP($P$1,leger!$A$6:$AS$45,3)","v":"Achmad Fauzi"},null,null,null,null,"Kompetensi Keahlian",null,null,": Otomatisasi dan Tata Kelola Perkantoran"]
["No. Induk Siswa",null,null,": ",{"$f":"VLOOKUP($P$1,leger!$A$6:$AS$45,2)","v":1243},null,null,null,null,"Tingkat",null,null,": X (Sepuluh)",null,"OTP 1"]
["Bidang Studi Keahlian",null,null,": ","Bisnis dan Manajemen",null,null,null,null,"Semester",null,null,": Semester 1 (Ganjil) "]
["Program Studi Keahlian",null,null,": ","Manajamen Perkantoran",null,null,null,null,"Tahun Pelajaran",null,null,": 2017 / 2018"]
[]
["CAPAIAN HASIL BELAJAR"]
["A. SIKAP"]
[null,"Deskripsi     :"]
[null,{"$f":"VLOOKUP($P$1,leger!$A$6:$AS$45,42)","v":"Selalu bersyukur, selalu berdoa sebelum melakukan kegiatan, toleran pada agama yang berbeda dan perlu meningkatkan ketaatan beribadah serta selalu bersikap santun, peduli,  percaya diri, dan perlu meningkatkan sikap jujur, disiplin, dan tanggungjawab"}]
[]
["B. PENGETAHUAN DAN KETERAMPILAN"]
["No",null,"Mata Pelajaran",null,null,"Pengetahuan",null,null,null,"Keterampilan"]
[null,null,null,null,null,"KBM","Angka","Predikat","Deskripsi","KBM","Angka","Predikat",null,"Deskripsi"]
["A. Muatan Nasional"]
[1,null,"Pendidikan Agama dan Budi Pekerti",null,null,75,{"$f":"ROUNDUP(VLOOKUP($P$1,leger!$A$6:$AS$45,4),0)","v":0},{"$f":"IF(G18>91,\"A\",IF(G18>82,\"B\",IF(G18>74,\"C\",\"D\")))","v":"D"},{"$f":"VLOOKUP($P$1,deskripsi!$A$5:$AI$48,4)","v":"contoh "},75,{"$f":"ROUNDUP(VLOOKUP($P$1,leger!$A$6:$AS$45,5),0)","v":0},{"$f":"IF(K18>91,\"A\",IF(K18>82,\"B\",IF(K18>74,\"C\",\"D\")))","v":"D"},"A",{"$f":"VLOOKUP($P$1,deskripsi!$A$5:$AI$48,5)","v":"contoh"}]
[2,null,"Pendidikan Pancasila dan Kewarganegaraan",null,null,75,{"$f":"ROUNDUP(VLOOKUP($P$1,leger!$A$6:$AS$45,6),0)","v":0},{"$f":"IF(G19>91,\"A\",IF(G19>82,\"B\",IF(G19>74,\"C\",\"D\")))","v":"D"},{"$f":"VLOOKUP($P$1,deskripsi!$A$5:$AI$48,6)","v":0},75,{"$f":"ROUNDUP(VLOOKUP($P$1,leger!$A$6:$AS$45,7),0)","v":0},"D","A",{"$f":"VLOOKUP($P$1,deskripsi!$A$5:$AI$48,7)","v":0}]
[3,null,"Bahasa Indonesia",null,null,75,{"$f":"ROUNDUP(VLOOKUP($P$1,leger!$A$6:$AS$45,8),0)","v":0},"D",{"$f":"VLOOKUP($P$1,deskripsi!$A$5:$AI$48,8)","v":0},75,{"$f":"ROUNDUP(VLOOKUP($P$1,leger!$A$6:$AS$45,9),0)","v":0},{"$f":"IF(K20>91,\"A\",IF(K20>82,\"B\",IF(K20>74,\"C\",\"D\")))","v":"D"},"A",{"$f":"VLOOKUP($P$1,deskripsi!$A$5:$AI$48,9)","v":0}]
[4,null,"Matematika",null,null,75,{"$f":"ROUNDUP(VLOOKUP($P$1,leger!$A$6:$AS$45,10),0)","v":0},"D",{"$f":"VLOOKUP($P$1,deskripsi!$A$5:$AI$48,10)","v":0},75,{"$f":"ROUNDUP(VLOOKUP($P$1,leger!$A$6:$AS$45,11),0)","v":0},{"$f":"IF(K21>91,\"A\",IF(K21>82,\"B\",IF(K21>74,\"C\",\"D\")))","v":"D"},"A",{"$f":"VLOOKUP($P$1,deskripsi!$A$5:$AI$48,11)","v":0}]
[5,null,"Sejarah Indonesia",null,null,75,{"$f":"ROUNDUP(VLOOKUP($P$1,leger!$A$6:$AS$45,12),0)","v":0},"D",{"$f":"VLOOKUP($P$1,deskripsi!$A$5:$AI$48,12)","v":0},75,{"$f":"ROUNDUP(VLOOKUP($P$1,leger!$A$6:$AS$45,13),0)","v":0},{"$f":"IF(K22>91,\"A\",IF(K22>82,\"B\",IF(K22>74,\"C\",\"D\")))","v":"D"},"A",{"$f":"VLOOKUP($P$1,deskripsi!$A$5:$AI$48,13)","v":0}]
[6,null,"Bahasa Inggris",null,null,75,{"$f":"ROUNDUP(VLOOKUP($P$1,leger!$A$6:$AS$45,14),0)","v":0},"D",{"$f":"VLOOKUP($P$1,deskripsi!$A$5:$AI$48,14)","v":0},75,{"$f":"ROUNDUP(VLOOKUP($P$1,leger!$A$6:$AS$45,15),0)","v":0},{"$f":"IF(K23>91,\"A\",IF(K23>82,\"B\",IF(K23>74,\"C\",\"D\")))","v":"D"},"A",{"$f":"VLOOKUP($P$1,deskripsi!$A$5:$AI$48,15)","v":0}]
["B. Muatan Kewilayahan"]
[1,null,"Seni Budaya",null,null,75,{"$f":"ROUNDUP(VLOOKUP($P$1,leger!$A$6:$AS$45,16),0)","v":0},"D",{"$f":"VLOOKUP($P$1,deskripsi!$A$5:$AI$48,16)","v":0},75,{"$f":"ROUNDUP(VLOOKUP($P$1,leger!$A$6:$AS$45,17),0)","v":0},{"$f":"IF(K25>91,\"A\",IF(K25>82,\"B\",IF(K25>74,\"C\",\"D\")))","v":"D"},"A",{"$f":"VLOOKUP($P$1,deskripsi!$A$5:$AI$48,17)","v":0}]
[2,null,"Pendidikan Jasmani, Olahraga dan Kesehatan",null,null,75,{"$f":"ROUNDUP(VLOOKUP($P$1,leger!$A$6:$AS$45,18),0)","v":0},"D",{"$f":"VLOOKUP($P$1,deskripsi!$A$5:$AI$48,18)","v":0},75,{"$f":"ROUNDUP(VLOOKUP($P$1,leger!$A$6:$AS$45,19),0)","v":0},{"$f":"IF(K26>91,\"A\",IF(K26>82,\"B\",IF(K26>74,\"C\",\"D\")))","v":"D"},"A",{"$f":"VLOOKUP($P$1,deskripsi!$A$5:$AI$48,19)","v":0}]
["C. Muatan Peminatan Kejuruan"]
["C1. Dasar Bidang Keahlian"]
[1,null,"Simulasi dan Komunikasi Digital",null,null,75,{"$f":"ROUNDUP(VLOOKUP($P$1,leger!$A$6:$AS$45,20),0)","v":0},{"$f":"IF(G29>91,\"A\",IF(G29>82,\"B\",IF(G29>74,\"C\",\"D\")))","v":"D"},{"$f":"VLOOKUP($P$1,deskripsi!$A$5:$AI$48,20)","v":0},75,{"$f":"ROUNDUP(VLOOKUP($P$1,leger!$A$6:$AS$45,21),0)","v":0},{"$f":"IF(K29>91,\"A\",IF(K29>82,\"B\",IF(K29>74,\"C\",\"D\")))","v":"D"},"A",{"$f":"VLOOKUP($P$1,deskripsi!$A$5:$AI$48,21)","v":0}]
[2,null,"Pengantar Ekonomi Bisnis",null,null,75,{"$f":"ROUNDUP(VLOOKUP($P$1,leger!$A$6:$AS$45,22),0)","v":0},"D",{"$f":"VLOOKUP($P$1,deskripsi!$A$5:$AI$48,22)","v":0},75,{"$f":"ROUNDUP(VLOOKUP($P$1,leger!$A$6:$AS$45,23),0)","v":0},{"$f":"IF(K30>91,\"A\",IF(K30>82,\"B\",IF(K30>74,\"C\",\"D\")))","v":"D"},"A",{"$f":"VLOOKUP($P$1,deskripsi!$A$5:$AI$48,23)","v":0}]
[3,null,"Administrasi Umum",null,null,75,{"$f":"ROUNDUP(VLOOKUP($P$1,leger!$A$6:$AS$45,24),0)","v":0},"D",{"$f":"VLOOKUP($P$1,deskripsi!$A$5:$AI$48,24)","v":0},75,{"$f":"ROUNDUP(VLOOKUP($P$1,leger!$A$6:$AS$45,25),0)","v":0},{"$f":"IF(K31>91,\"A\",IF(K31>82,\"B\",IF(K31>74,\"C\",\"D\")))","v":"D"},"A",{"$f":"VLOOKUP($P$1,deskripsi!$A$5:$AI$48,25)","v":0}]
[4,null,"Ilmu Pengetahuan Alam",null,null,75,{"$f":"ROUNDUP(VLOOKUP($P$1,leger!$A$6:$AS$45,26),0)","v":0},"D",{"$f":"VLOOKUP($P$1,deskripsi!$A$5:$AI$48,26)","v":0},75,{"$f":"ROUNDUP(VLOOKUP($P$1,leger!$A$6:$AS$45,27),0)","v":0},{"$f":"IF(K32>91,\"A\",IF(K32>82,\"B\",IF(K32>74,\"C\",\"D\")))","v":"D"},"A",{"$f":"VLOOKUP($P$1,deskripsi!$A$5:$AI$48,27)","v":0}]
["C2. Dasar Program Keahlian"]
[1,null,"Teknologi Perkantoran",null,null,75,{"$f":"ROUNDUP(VLOOKUP($P$1,leger!$A$6:$AS$45,28),0)","v":0},"D",{"$f":"VLOOKUP($P$1,deskripsi!$A$5:$AI$48,28)","v":0},75,{"$f":"ROUNDUP(VLOOKUP($P$1,leger!$A$6:$AS$45,29),0)","v":0},{"$f":"IF(K34>91,\"A\",IF(K34>82,\"B\",IF(K34>74,\"C\",\"D\")))","v":"D"},"A",{"$f":"VLOOKUP($P$1,deskripsi!$A$5:$AI$48,29)","v":0}]
[2,null,"Korespondensi",null,null,75,{"$f":"ROUNDUP(VLOOKUP($P$1,leger!$A$6:$AS$45,30),0)","v":0},"D",{"$f":"VLOOKUP($P$1,deskripsi!$A$5:$AI$48,30)","v":0},75,{"$f":"ROUNDUP(VLOOKUP($P$1,leger!$A$6:$AS$45,31),0)","v":0},{"$f":"IF(K35>91,\"A\",IF(K35>82,\"B\",IF(K35>74,\"C\",\"D\")))","v":"D"},"A",{"$f":"VLOOKUP($P$1,deskripsi!$A$5:$AI$48,31)","v":0}]
[3,null,"Kearsipan",null,null,75,{"$f":"ROUNDUP(VLOOKUP($P$1,leger!$A$6:$AS$45,32),0)","v":20},"D",{"$f":"VLOOKUP($P$1,deskripsi!$A$5:$AI$48,32)","v":0},75,{"$f":"ROUNDUP(VLOOKUP($P$1,leger!$A$6:$AS$45,33),0)","v":0},{"$f":"IF(K36>91,\"A\",IF(K36>82,\"B\",IF(K36>74,\"C\",\"D\")))","v":"D"},"A",{"$f":"VLOOKUP($P$1,deskripsi!$A$5:$AI$48,33)","v":0}]
[4,null,"Perbankan Dasar",null,null,75,{"$f":"ROUNDUP(VLOOKUP($P$1,leger!$A$6:$AS$45,34),0)","v":0},"D",{"$f":"VLOOKUP($P$1,deskripsi!$A$5:$AI$48,34)","v":0},75,{"$f":"ROUNDUP(VLOOKUP($P$1,leger!$A$6:$AS$45,35),0)","v":0},{"$f":"IF(K37>91,\"A\",IF(K37>82,\"B\",IF(K37>74,\"C\",\"D\")))","v":"D"},"A",{"$f":"VLOOKUP($P$1,deskripsi!$A$5:$AI$48,35)","v":0}]
[null,null,null,"Rata-Rata",null,null,{"$f":"VLOOKUP($P$1,leger!$A$6:$AS$45,37)","v":20}]
[null,null,null,"Peringkat Kelas",null,null,{"$f":"VLOOKUP($P$1,leger!$A$6:$AS$45,38)","v":1}]
[]
[]
["C. Praktik Kerja Lapangan"]
["No",null,"Mitra DU/DI",null,null,null,null,"Lokasi",null,"Lamanya",null,"Keterangan"]
[1]
[2]
[3]
[]
["D. Ekstra Kurikuler"]
["No",null,"Kegiatan Ekstra Kurikuler",null,null,null,"Nilai","Keterangan"]
[1,null,{"$f":"VLOOKUP($P$1,Ekskul!$A$4:$M$47,4)","v":"Praja Muda Karana (Pramuka)"},null,null,null,{"$f":"VLOOKUP($P$1,Ekskul!$A$4:$M$47,7)","v":"A"},{"$f":"VLOOKUP($P$1,Ekskul!$A$4:$M$47,10)","v":"Melaksanakan kegiatan pramuka dengan Sangat Baik"},{"$f":"VLOOKUP($P$1,Ekskul!$A$4:$M$47,4)","v":"Praja Muda Karana (Pramuka)"},{"$f":"VLOOKUP($P$1,Ekskul!$A$4:$M$47,4)","v":"Praja Muda Karana (Pramuka)"},{"$f":"VLOOKUP($P$1,Ekskul!$A$4:$M$47,4)","v":"Praja Muda Karana (Pramuka)"},{"$f":"VLOOKUP($P$1,Ekskul!$A$4:$M$47,4)","v":"Praja Muda Karana (Pramuka)"},{"$f":"VLOOKUP($P$1,Ekskul!$A$4:$M$47,4)","v":"Praja Muda Karana (Pramuka)"}]
[2,null,{"$f":"VLOOKUP($P$1,Ekskul!$A$4:$M$47,5)","v":"Silat"},null,null,null,{"$f":"VLOOKUP($P$1,Ekskul!$A$4:$M$47,8)","v":"B"},{"$f":"VLOOKUP($P$1,Ekskul!$A$4:$M$47,11)","v":"Melaksanakan kegiatan Silat dengan Baik"},{"$f":"VLOOKUP($P$1,Ekskul!$A$4:$M$47,4)","v":"Praja Muda Karana (Pramuka)"},{"$f":"VLOOKUP($P$1,Ekskul!$A$4:$M$47,4)","v":"Praja Muda Karana (Pramuka)"},{"$f":"VLOOKUP($P$1,Ekskul!$A$4:$M$47,4)","v":"Praja Muda Karana (Pramuka)"},{"$f":"VLOOKUP($P$1,Ekskul!$A$4:$M$47,4)","v":"Praja Muda Karana (Pramuka)"},{"$f":"VLOOKUP($P$1,Ekskul!$A$4:$M$47,4)","v":"Praja Muda Karana (Pramuka)"}]
[3,null,{"$f":"VLOOKUP($P$1,Ekskul!$A$4:$M$47,6)","v":0},null,null,null,{"$f":"VLOOKUP($P$1,Ekskul!$A$4:$M$47,9)","v":0},{"$f":"VLOOKUP($P$1,Ekskul!$A$4:$M$47,12)","v":""},{"$f":"VLOOKUP($P$1,Ekskul!$A$4:$M$47,4)","v":"Praja Muda Karana (Pramuka)"},{"$f":"VLOOKUP($P$1,Ekskul!$A$4:$M$47,4)","v":"Praja Muda Karana (Pramuka)"},{"$f":"VLOOKUP($P$1,Ekskul!$A$4:$M$47,4)","v":"Praja Muda Karana (Pramuka)"},{"$f":"VLOOKUP($P$1,Ekskul!$A$4:$M$47,4)","v":"Praja Muda Karana (Pramuka)"},{"$f":"VLOOKUP($P$1,Ekskul!$A$4:$M$47,4)","v":"Praja Muda Karana (Pramuka)"}]
[]
["E. Prestasi"]
["No",null,"Jenis Prestasi",null,null,null,null,"Peringkat",null,"Keterangan"]
[1,null,{"$f":"VLOOKUP($P$1,Prestasi!$A$4:$L$47,4)","v":"Juara lomba lari tingkat Kecamatan"},null,null,null,null,{"$f":"VLOOKUP($P$1,Prestasi!$A$4:$L$47,7)","v":3},null,{"$f":"VLOOKUP($P$1,Prestasi!$A$4:$L$47,10)","v":"lomba lari tingkat kecamatan jagakarsa"}]
[2,null,{"$f":"VLOOKUP($P$1,Prestasi!$A$4:$L$47,5)","v":0},null,null,null,null,{"$f":"VLOOKUP($P$1,Prestasi!$A$4:$L$47,8)","v":0},null,{"$f":"VLOOKUP($P$1,Prestasi!$A$4:$L$47,11)","v":0}]
[3,null,{"$f":"VLOOKUP($P$1,Prestasi!$A$4:$L$47,6)","v":0},null,null,null,null,{"$f":"VLOOKUP($P$1,Prestasi!$A$4:$L$47,9)","v":0},null,{"$f":"VLOOKUP($P$1,Prestasi!$A$4:$L$47,12)","v":0}]
[]
["F. Ketidakhadiran"]
["Ketidakhadiran"]
["1. Sakit                         ",null,null,":",{"$f":"VLOOKUP($P$1,leger!$A$6:$AS$45,43)","v":2},"Hari"]
["2. Izin                            ",null,null,":",{"$f":"VLOOKUP($P$1,leger!$A$6:$AS$45,44)","v":1},"Hari"]
["3. Tanpa keterangan       ",null,null,":",{"$f":"VLOOKUP($P$1,leger!$A$6:$AS$45,45)","v":7},"Hari"]
[]
["Mengetahui,",null,null,null,null,null,null,null,null,null,null,null,null,"Jakarta, 22 Desember 2017"]
["Orang Tua/Wali",null,null,null,null,null,null,null,null,null,null,null,null,"Wali kelas"]
[]
[]
[]
[]
["---------------------------------",null,null,null,null,null,null,null,null,null,null,null,null,"NUR ASYIAH, S.Pd.I"]
[]
[null,null,null,null,null,null,null,"Kepala Sekolah"]
[]
[]
[]
[]
[null,null,null,null,null,null,null,"MINI WARYANTI. S.Pd."]

{"sheet":"leger","index":1,"n_rows":52,"n_cols":45,"rows_kept":52,"cut":false,"hidden":false,"merged":[[3,13,3,14],[3,15,3,16],[3,17,3,18],[3,33,3,34],[3,21,3,22],[3,23,3,24],[3,25,3,26],[3,27,3,28],[3,29,3,30],[3,31,3,32],[3,19,3,20],[3,3,3,4],[3,5,3,6],[3,7,3,8],[3,9,3,10],[3,11,3,12]]}
[]
[1,2,3,4,5,6,7,8,9,10,11,12,13,14,15,16,17,18,19,20,21,22,23,24,25,26,27,28,29,30,31,32,33,34,35,36,37,38,39,40,41,42,43,44,45]
[]
["No.","NIS","Nama Siswa","PAI",null,"PKN",null,"B.Ind",null,"MTK",null,"Sejarah",null,"B.Ing",null,"Seni Budaya",null,"Penjasor",null,"Simdig",null,"EkoBis",null,"Administrasi",null,"IPA",null,"Tek. Kantor",null,"Koresponden",null,"Kearsipan",null,"Bank Dasar",null,"jml nilai","Rata2","rank","eks1","eks2","eks3","deskripsi siswa","S","I","A"]
[null,null,null,"KI 3","KI 4","KI 3","KI 4","KI 3","KI 4","KI 3","KI 4","KI 3","KI 4","KI 3","KI 4","KI 3","KI 4","KI 3","KI 4","KI 3","KI 4","KI 3","KI 4","KI 3","KI 4","KI 3","KI 4","KI 3","KI 4","KI 3","KI 4","KI 3","KI 4","KI 3","KI 4"]
[1,1243,"Achmad Fauzi",null,null,null,null,null,null,null,null,null,null,null,null,null,null,null,null,null,null,null,null,null,null,null,null,null,null,null,null,20,null,null,null,{"$f":"SUM(E6:AI6)","v":20},{"$f":"AVERAGE(D6:AI6)","v":20},{"$f":"RANK(AJ6,$AJ$6:$AJ$45)","v":1},null,null,null,"Selalu bersyukur, selalu berdoa sebelum melakukan kegiatan, toleran pada agama yang berbeda dan perlu meningkatkan ketaatan beribadah serta selalu bersikap santun, peduli,  percaya diri, dan perlu meningkatkan sikap jujur, disiplin, dan tanggungjawab",2,1,7]
[2,1279,"Angga Mahardika",null,null,null,null,null,null,null,null,null,null,null,null,null,null,null,null,null,null,null,null,null,null,null,null,null,null,null,null,null,null,null,null,{"$f":"SUM(F7:AI7)","v":0},{"$error":"#DIV/0!"},{"$f":"RANK(AJ7,$AJ$6:$AJ$45)","v":2}]
[3,1286,"Antonio Afif Diansyah",null,null,null,null,null,null,null,null,null,null,null,null,null,null,null,null,null,null,null,null,null,null,null,null,null,null,null,null,null,null,null,null,0,{"$error":"#DIV/0!"},2]
[4,1301,"Asih Alika Putri",null,null,null,null,null,null,null,null,null,null,null,null,null,null,null,null,null,null,null,null,null,null,null,null,null,null,null,null,null,null,null,null,0,{"$error":"#DIV/0!"},2]
[5,1324,"Denis Dwi Seftian",null,null,null,null,null,null,null,null,null,null,null,null,null,null,null,null,null,null,null,null,null,null,null,null,null,null,null,null,null,null,null,null,0,{"$error":"#DIV/0!"},2]
[6,1325,"Dhea Annisa",null,null,null,null,null,null,null,null,null,null,null,null,null,null,null,null,null,null,null,null,null,null,null,null,null,null,null,null,null,null,null,null,0,{"$error":"#DIV/0!"},2]
[7,1326,"Dhea Kadrianda Fatmah",null,null,null,null,null,null,null,null,null,null,null,null,null,null,null,null,null,null,null,null,null,null,null,null,null,null,null,null,null,null,null,null,0,{"$error":"#DIV/0!"},2]
[8,1329,"Diandra Putri",null,null,null,null,null,null,null,null,null,null,null,null,null,null,null,null,null,null,null,null,null,null,null,null,null,null,null,null,null,null,null,null,0,{"$error":"#DIV/0!"},2]
[9,1353,"Farhan Dwi Alfiansyah T.",null,null,null,null,null,null,null,null,null,null,null,null,null,null,null,null,null,null,null,null,null,null,null,null,null,null,null,null,null,null,null,null,0,{"$error":"#DIV/0!"},2]
[10,1355,"Fathan Try Alfiansyah T.",null,null,null,null,null,null,null,null,null,null,null,null,null,null,null,null,null,null,null,null,null,null,null,null,null,null,null,null,null,null,null,null,0,{"$error":"#DIV/0!"},2]
[11,1357,"Fauzan Hisyam Dirhamsyah",null,null,null,null,null,null,null,null,null,null,null,null,null,null,null,null,null,null,null,null,null,null,null,null,null,null,null,null,null,null,null,null,0,{"$error":"#DIV/0!"},2]
[12,1362,"Fitra Haryadi Setiawan",null,null,null,null,null,null,null,null,null,null,null,null,null,null,null,null,null,null,null,null,null,null,null,null,null,null,null,null,null,null,null,null,0,{"$error":"#DIV/0!"},2]
[13,1363,"Fitri Hidaningsih",null,null,null,null,null,null,null,null,null,null,null,null,null,null,null,null,null,null,null,null,null,null,null,null,null,null,null,null,null,null,null,null,0,{"$error":"#DIV/0!"},2]
[14,1369,"Hilda Maulana",null,null,null,null,null,null,null,null,null,null,null,null,null,null,null,null,null,null,null,null,null,null,null,null,null,null,null,null,null,null,null,null,0,{"$error":"#DIV/0!"},2]
[15,1370,"Hilmi Rayhan Fadil",null,null,null,null,null,null,null,null,null,null,null,null,null,null,null,null,null,null,null,null,null,null,null,null,null,null,null,null,null,null,null,null,0,{"$error":"#DIV/0!"},2]
[16,1383,"Intan Meydhina Putri",null,null,null,null,null,null,null,null,null,null,null,null,null,null,null,null,null,null,null,null,null,null,null,null,null,null,null,null,null,null,null,null,0,{"$error":"#DIV/0!"},2]
[17,1391,"Jasmine Putri Ayu Septianingrum",null,null,null,null,null,null,null,null,null,null,null,null,null,null,null,null,null,null,null,null,null,null,null,null,null,null,null,null,null,null,null,null,0,{"$error":"#DIV/0!"},2]
[18,1394,"Kartika Suwito",null,null,null,null,null,null,null,null,null,null,null,null,null,null,null,null,null,null,null,null,null,null,null,null,null,null,null,null,null,null,null,null,0,{"$error":"#DIV/0!"},2]
[19,1404,"M. Arda Firdaus",null,null,null,null,null,null,null,null,null,null,null,null,null,null,null,null,null,null,null,null,null,null,null,null,null,null,null,null,null,null,null,null,0,{"$error":"#DIV/0!"},2]
[20,1418,"Mochammad Syahrul Gunawan",null,null,null,null,null,null,null,null,null,null,null,null,null,null,null,null,null,null,null,null,null,null,null,null,null,null,null,null,null,null,null,null,0,{"$error":"#DIV/0!"},2,null,"A"]
[21,1435,"Muhammad Abian Zafran",null,null,null,null,null,null,null,null,null,null,null,null,null,null,null,null,null,null,null,null,null,null,null,null,null,null,null,null,null,null,null,null,0,{"$error":"#DIV/0!"},2]
[22,1452,"Muhammad Purkon",null,null,null,null,null,null,null,null,null,null,null,null,null,null,null,null,null,null,null,null,null,null,null,null,null,null,null,null,null,null,null,null,0,{"$error":"#DIV/0!"},2]
[23,1462,"Mustika Rahmawati Dewi",null,null,null,null,null,null,null,null,null,null,null,null,null,null,null,null,null,null,null,null,null,null,null,null,null,null,null,null,null,null,null,null,0,{"$error":"#DIV/0!"},2]
[24,1463,"Mutiara Rhamadana",null,null,null,null,null,null,null,null,null,null,null,null,null,null,null,null,null,null,null,null,null,null,null,null,null,null,null,null,null,null,null,null,0,{"$error":"#DIV/0!"},2]
[25,1466,"Nadya Rahmah",null,null,null,null,null,null,null,null,null,null,null,null,null,null,null,null,null,null,null,null,null,null,null,null,null,null,null,null,null,null,null,null,0,{"$error":"#DIV/0!"},2,null,"A"]
[26,1468,"Nia Anisaputri",null,null,null,null,null,null,null,null,null,null,null,null,null,null,null,null,null,null,null,null,null,null,null,null,null,null,null,null,null,null,null,null,0,{"$error":"#DIV/0!"},2]
[27,1475,"Octania Egy Jatmiko",null,null,null,null,null,null,null,null,null,null,null,null,null,null,null,null,null,null,null,null,null,null,null,null,null,null,null,null,null,null,null,null,0,{"$error":"#DIV/0!"},2]
[28,1481,"Putri Amelya",null,null,null,null,null,null,null,null,null,null,null,null,null,null,null,null,null,null,null,null,null,null,null,null,null,null,null,null,null,null,null,null,0,{"$error":"#DIV/0!"},2]
[29,1511,"Rizky Ardiansyah",null,null,null,null,null,null,null,null,null,null,null,null,null,null,null,null,null,null,null,null,null,null,null,null,null,null,null,null,null,null,null,null,{"$f":"SUM(F34:AI34)","v":0},{"$f":"AVERAGE(D34:AI34)","v":{"$error":"#DIV/0!"}},2]
[30,1512,"Rizky Arya Pratama",null,null,null,null,null,null,null,null,null,null,null,null,null,null,null,null,null,null,null,null,null,null,null,null,null,null,null,null,null,null,null,null,0,{"$error":"#DIV/0!"},2]
[31,1516,"Robiyatul Adawiyah",null,null,null,null,null,null,null,null,null,null,null,null,null,null,null,null,null,null,null,null,null,null,null,null,null,null,null,null,null,null,null,null,0,{"$error":"#DIV/0!"},2]
[32,1528,"Serlyana Suryatna Putri",null,null,null,null,null,null,null,null,null,null,null,null,null,null,null,null,null,null,null,null,null,null,null,null,null,null,null,null,null,null,null,null,0,{"$error":"#DIV/0!"},2]
[33,1529,"Sintya Ayuningtias",null,null,null,null,null,null,null,null,null,null,null,null,null,null,null,null,null,null,null,null,null,null,null,null,null,null,null,null,null,null,null,null,0,{"$error":"#DIV/0!"},2]
[34,1532,"Siti Khoirul Nisa",null,null,null,null,null,null,null,null,null,null,null,null,null,null,null,null,null,null,null,null,null,null,null,null,null,null,null,null,null,null,null,null,0,{"$error":"#DIV/0!"},2]
[35,1542,"Tiara Fraulinda Hermawan",null,null,null,null,null,null,null,null,null,null,null,null,null,null,null,null,null,null,null,null,null,null,null,null,null,null,null,null,null,null,null,null,0,{"$error":"#DIV/0!"},2]
[36,1552,"Wulandari",null,null,null,null,null,null,null,null,null,null,null,null,null,null,null,null,null,null,null,null,null,null,null,null,null,null,null,null,null,null,null,null,0,{"$error":"#DIV/0!"},2]
[37,null,null,null,null,null,null,null,null,null,null,null,null,null,null,null,null,null,null,null,null,null,null,null,null,null,null,null,null,null,null,null,null,null,null,0,{"$error":"#DIV/0!"},2]
[38]
[39]
[40]
[]
[null,null,null,null,null,null,null,null,null,null,null,null,null,null,null,null,null,null,null,null,null,null,null,null,null,null,null,null,null,null,null,null,null,null,null,null,{"$f":"rapot!N66","v":"Jakarta, 22 Desember 2017"}]
[null,null,null,null,null,null,null,null,null,null,null,null,null,null,null,null,null,null,null,null,null,null,null,null,null,null,null,null,null,null,null,null,null,null,null,null,"Walikelas,"]
[]
[]
[]
[null,null,null,null,null,null,null,null,null,null,null,null,null,null,null,null,null,null,null,null,null,null,null,null,null,null,null,null,null,null,null,null,null,null,null,null,{"$f":"rapot!N72","v":"NUR ASYIAH, S.Pd.I"}]

{"sheet":"deskripsi","index":2,"n_rows":48,"n_cols":35,"rows_kept":48,"cut":false,"hidden":false,"merged":[[2,33,2,34],[2,15,2,16],[2,17,2,18],[2,19,2,20],[2,21,2,22],[2,23,2,24],[2,25,2,26],[2,27,2,28],[2,29,2,30],[2,31,2,32],[2,13,2,14],[2,3,2,4],[2,5,2,6],[2,7,2,8],[2,9,2,10],[2,11,2,12]]}
[]
[]
["No.","NIS","Nama Siswa",{"$f":"leger!D4","v":"PAI"},null,{"$f":"leger!F4","v":"PKN"},null,{"$f":"leger!H4","v":"B.Ind"},null,{"$f":"leger!J4","v":"MTK"},null,{"$f":"leger!L4","v":"Sejarah"},null,{"$f":"leger!N4","v":"B.Ing"},null,{"$f":"leger!P4","v":"Seni Budaya"},null,{"$f":"leger!R4","v":"Penjasor"},null,{"$f":"leger!T4","v":"Simdig"},null,{"$f":"leger!V4","v":"EkoBis"},null,{"$f":"leger!X4","v":"Administrasi"},null,{"$f":"leger!Z4","v":"IPA"},null,{"$f":"leger!AB4","v":"Tek. Kantor"},null,{"$f":"leger!AD4","v":"Koresponden"},null,{"$f":"leger!AF4","v":"Kearsipan"},null,{"$f":"leger!AH4","v":"Bank Dasar"}]
[null,null,null,"Pengetahuan","Keterampilan","Pengetahuan","Keterampilan","Pengetahuan","Keterampilan","Pengetahuan","Keterampilan","Pengetahuan","Keterampilan","Pengetahuan","Keterampilan","Pengetahuan","Keterampilan","Pengetahuan","Keterampilan","Pengetahuan","Keterampilan","Pengetahuan","Keterampilan","Pengetahuan","Keterampilan","Pengetahuan","Keterampilan","Pengetahuan","Keterampilan","Pengetahuan","Keterampilan","Pengetahuan","Keterampilan","Pengetahuan","Keterampilan"]
[1,{"$f":"leger!B6","v":1243},{"$f":"leger!C6","v":"Achmad Fauzi"},"contoh ","contoh"]
[2,{"$f":"leger!B7","v":1279},{"$f":"leger!C7","v":"Angga Mahardika"}]
[3,{"$f":"leger!B8","v":1286},{"$f":"leger!C8","v":"Antonio Afif Diansyah"}]
[4,{"$f":"leger!B9","v":1301},{"$f":"leger!C9","v":"Asih Alika Putri"}]
[5,{"$f":"leger!B10","v":1324},{"$f":"leger!C10","v":"Denis Dwi Seftian"}]
[6,{"$f":"leger!B11","v":1325},{"$f":"leger!C11","v":"Dhea Annisa"}]
[7,{"$f":"leger!B12","v":1326},{"$f":"leger!C12","v":"Dhea Kadrianda Fatmah"}]
[8,{"$f":"leger!B13","v":1329},{"$f":"leger!C13","v":"Diandra Putri"}]
[9,{"$f":"leger!B14","v":1353},{"$f":"leger!C14","v":"Farhan Dwi Alfiansyah T."}]
[10,{"$f":"leger!B15","v":1355},{"$f":"leger!C15","v":"Fathan Try Alfiansyah T."}]
[11,{"$f":"leger!B16","v":1357},{"$f":"leger!C16","v":"Fauzan Hisyam Dirhamsyah"}]
[12,{"$f":"leger!B17","v":1362},{"$f":"leger!C17","v":"Fitra Haryadi Setiawan"}]
[13,{"$f":"leger!B18","v":1363},{"$f":"leger!C18","v":"Fitri Hidaningsih"}]
[14,{"$f":"leger!B19","v":1369},{"$f":"leger!C19","v":"Hilda Maulana"}]
[15,{"$f":"leger!B20","v":1370},{"$f":"leger!C20","v":"Hilmi Rayhan Fadil"}]
[16,{"$f":"leger!B21","v":1383},{"$f":"leger!C21","v":"Intan Meydhina Putri"}]
[17,{"$f":"leger!B22","v":1391},{"$f":"leger!C22","v":"Jasmine Putri Ayu Septianingrum"}]
[18,{"$f":"leger!B23","v":1394},{"$f":"leger!C23","v":"Kartika Suwito"}]
[19,{"$f":"leger!B24","v":1404},{"$f":"leger!C24","v":"M. Arda Firdaus"}]
[20,{"$f":"leger!B25","v":1418},{"$f":"leger!C25","v":"Mochammad Syahrul Gunawan"}]
[21,{"$f":"leger!B26","v":1435},{"$f":"leger!C26","v":"Muhammad Abian Zafran"}]
[22,{"$f":"leger!B27","v":1452},{"$f":"leger!C27","v":"Muhammad Purkon"}]
[23,{"$f":"leger!B28","v":1462},{"$f":"leger!C28","v":"Mustika Rahmawati Dewi"}]
[24,{"$f":"leger!B29","v":1463},{"$f":"leger!C29","v":"Mutiara Rhamadana"}]
[25,{"$f":"leger!B30","v":1466},{"$f":"leger!C30","v":"Nadya Rahmah"}]
[26,{"$f":"leger!B31","v":1468},{"$f":"leger!C31","v":"Nia Anisaputri"}]
[27,{"$f":"leger!B32","v":1475},{"$f":"leger!C32","v":"Octania Egy Jatmiko"}]
[28,{"$f":"leger!B33","v":1481},{"$f":"leger!C33","v":"Putri Amelya"}]
[29,{"$f":"leger!B34","v":1511},{"$f":"leger!C34","v":"Rizky Ardiansyah"}]
[30,{"$f":"leger!B35","v":1512},{"$f":"leger!C35","v":"Rizky Arya Pratama"}]
[31,{"$f":"leger!B36","v":1516},{"$f":"leger!C36","v":"Robiyatul Adawiyah"}]
[32,{"$f":"leger!B37","v":1528},{"$f":"leger!C37","v":"Serlyana Suryatna Putri"}]
[33,{"$f":"leger!B38","v":1529},{"$f":"leger!C38","v":"Sintya Ayuningtias"}]
[34,{"$f":"leger!B39","v":1532},{"$f":"leger!C39","v":"Siti Khoirul Nisa"}]
[35,{"$f":"leger!B40","v":1542},{"$f":"leger!C40","v":"Tiara Fraulinda Hermawan"}]
[36,{"$f":"leger!B41","v":1552},{"$f":"leger!C41","v":"Wulandari"}]
[37,{"$f":"leger!B42","v":0},{"$f":"leger!C42","v":0}]
[38,{"$f":"leger!B43","v":0},{"$f":"leger!C43","v":0}]
[39,{"$f":"leger!B44","v":0},{"$f":"leger!C44","v":0}]
[40,{"$f":"leger!B45","v":0},{"$f":"leger!C45","v":0}]
[41,{"$f":"leger!B46","v":0},{"$f":"leger!C46","v":0}]
[42,{"$f":"leger!B47","v":0},{"$f":"leger!C47","v":0}]
[43,{"$f":"leger!B48","v":0},{"$f":"leger!C48","v":0}]
[44,{"$f":"leger!B49","v":0},{"$f":"leger!C49","v":0}]

{"sheet":"Ekskul","index":3,"n_rows":47,"n_cols":12,"rows_kept":47,"cut":false,"hidden":false,"merged":[[1,0,2,0],[1,1,2,1],[1,2,2,2],[1,6,1,8],[1,9,1,11],[1,3,1,5]]}
[]
["No.","NIS","Nama Siswa","Kegiatan Ekskul",null,null,"Nilai Ekskul",null,null,"Keterangan"]
[null,null,null,"Ekskul Wajib","Ekskul Tambahan 1","Ekskul Tambahan 2","Ekskul Wajib","Ekskul Tambahan 1","Ekskul Tambahan 2","Ekskul Wajib","Ekskul Tambahan 1","Ekskul Tambahan 2"]
[1,{"$f":"leger!B6","v":1243},{"$f":"leger!C6","v":"Achmad Fauzi"},"Praja Muda Karana (Pramuka)","Silat",null,"A","B",null,{"$f":"IF(G4=\"A\",\"Melaksanakan kegiatan pramuka dengan Sangat Baik\",IF(G4=\"B\",\"Melaksanakan kegiatan pramuka dengan Baik\",IF(G4=\"C\",\"Melaksanakan kegiatan pramuka dengan Cukup Baik\",\"\")))","v":"Melaksanakan kegiatan pramuka dengan Sangat Baik"},{"$f":"IF(H4=\"A\",\"Melaksanakan kegiatan \" &E4& \" dengan Sangat Baik\",IF(H4=\"B\",\"Melaksanakan kegiatan \" &E4& \" dengan Baik\",IF(H4=\"C\",\"Melaksanakan kegiatan \" &E4& \" dengan Cukup Baik\",\"\")))","v":"Melaksanakan kegiatan Silat dengan Baik"},{"$f":"IF(I4=\"A\",\"Melaksanakan kegiatan \" &F4& \" dengan Sangat Baik\",IF(I4=\"B\",\"Melaksanakan kegiatan \" &F4& \" dengan Baik\",IF(I4=\"C\",\"Melaksanakan kegiatan \" &F4& \" dengan Cukup Baik\",\"\")))","v":""}]
[2,{"$f":"leger!B7","v":1279},{"$f":"leger!C7","v":"Angga Mahardika"},null,null,null,null,null,null,{"$f":"IF(G5=\"A\",\"Melaksanakan kegiatan pramuka dengan Sangat Baik\",IF(G5=\"B\",\"Melaksanakan kegiatan pramuka dengan Baik\",IF(G5=\"C\",\"Melaksanakan kegiatan pramuka dengan Cukup Baik\",\"\")))","v":""},{"$f":"IF(H5=\"A\",\"Melaksanakan kegiatan \" &E5& \" dengan Sangat Baik\",IF(H5=\"B\",\"Melaksanakan kegiatan \" &E5& \" dengan Baik\",IF(H5=\"C\",\"Melaksanakan kegiatan \" &E5& \" dengan Cukup Baik\",\"\")))","v":""},{"$f":"IF(I5=\"A\",\"Melaksanakan kegiatan \" &F5& \" dengan Sangat Baik\",IF(I5=\"B\",\"Melaksanakan kegiatan \" &F5& \" dengan Baik\",IF(I5=\"C\",\"Melaksanakan kegiatan \" &F5& \" dengan Cukup Baik\",\"\")))","v":""}]
[3,{"$f":"leger!B8","v":1286},{"$f":"leger!C8","v":"Antonio Afif Diansyah"},null,null,null,null,null,null,{"$f":"IF(G6=\"A\",\"Melaksanakan kegiatan pramuka dengan Sangat Baik\",IF(G6=\"B\",\"Melaksanakan kegiatan pramuka dengan Baik\",IF(G6=\"C\",\"Melaksanakan kegiatan pramuka dengan Cukup Baik\",\"\")))","v":""},"",""]
[4,{"$f":"leger!B9","v":1301},{"$f":"leger!C9","v":"Asih Alika Putri"},null,null,null,null,null,null,"","",""]
[5,{"$f":"leger!B10","v":1324},{"$f":"leger!C10","v":"Denis Dwi Seftian"},null,null,null,null,null,null,"","",""]
[6,{"$f":"leger!B11","v":1325},{"$f":"leger!C11","v":"Dhea Annisa"},null,null,null,null,null,null,"","",""]
[7,{"$f":"leger!B12","v":1326},{"$f":"leger!C12","v":"Dhea Kadrianda Fatmah"},null,null,null,null,null,null,"","",""]
[8,{"$f":"leger!B13","v":1329},{"$f":"leger!C13","v":"Diandra Putri"},null,null,null,null,null,null,"","",""]
[9,{"$f":"leger!B14","v":1353},{"$f":"leger!C14","v":"Farhan Dwi Alfiansyah T."},null,null,null,null,null,null,"","",""]
[10,{"$f":"leger!B15","v":1355},{"$f":"leger!C15","v":"Fathan Try Alfiansyah T."},null,null,null,null,null,null,"","",""]
[11,{"$f":"leger!B16","v":1357},{"$f":"leger!C16","v":"Fauzan Hisyam Dirhamsyah"},null,null,null,null,null,null,"","",""]
[12,{"$f":"leger!B17","v":1362},{"$f":"leger!C17","v":"Fitra Haryadi Setiawan"},null,null,null,null,null,null,"","",""]
[13,{"$f":"leger!B18","v":1363},{"$f":"leger!C18","v":"Fitri Hidaningsih"},null,null,null,null,null,null,"","",""]
[14,{"$f":"leger!B19","v":1369},{"$f":"leger!C19","v":"Hilda Maulana"},null,null,null,null,null,null,"","",""]
[15,{"$f":"leger!B20","v":1370},{"$f":"leger!C20","v":"Hilmi Rayhan Fadil"},null,null,null,null,null,null,"","",""]
[16,{"$f":"leger!B21","v":1383},{"$f":"leger!C21","v":"Intan Meydhina Putri"},null,null,null,null,null,null,"","",""]
[17,{"$f":"leger!B22","v":1391},{"$f":"leger!C22","v":"Jasmine Putri Ayu Septianingrum"},null,null,null,null,null,null,"","",""]
[18,{"$f":"leger!B23","v":1394},{"$f":"leger!C23","v":"Kartika Suwito"},null,null,null,null,null,null,"","",""]
[19,{"$f":"leger!B24","v":1404},{"$f":"leger!C24","v":"M. Arda Firdaus"},null,null,null,null,null,null,"","",""]
[20,{"$f":"leger!B25","v":1418},{"$f":"leger!C25","v":"Mochammad Syahrul Gunawan"},null,null,null,null,null,null,"","",""]
[21,{"$f":"leger!B26","v":1435},{"$f":"leger!C26","v":"Muhammad Abian Zafran"},null,null,null,null,null,null,"","",""]
[22,{"$f":"leger!B27","v":1452},{"$f":"leger!C27","v":"Muhammad Purkon"},null,null,null,null,null,null,"","",""]
[23,{"$f":"leger!B28","v":1462},{"$f":"leger!C28","v":"Mustika Rahmawati Dewi"},null,null,null,null,null,null,"","",""]
[24,{"$f":"leger!B29","v":1463},{"$f":"leger!C29","v":"Mutiara Rhamadana"},null,null,null,null,null,null,"","",""]
[25,{"$f":"leger!B30","v":1466},{"$f":"leger!C30","v":"Nadya Rahmah"},null,null,null,null,null,null,"","",""]
[26,{"$f":"leger!B31","v":1468},{"$f":"leger!C31","v":"Nia Anisaputri"},null,null,null,null,null,null,"","",""]
[27,{"$f":"leger!B32","v":1475},{"$f":"leger!C32","v":"Octania Egy Jatmiko"},null,null,null,null,null,null,"","",""]
[28,{"$f":"leger!B33","v":1481},{"$f":"leger!C33","v":"Putri Amelya"},null,null,null,null,null,null,"","",""]
[29,{"$f":"leger!B34","v":1511},{"$f":"leger!C34","v":"Rizky Ardiansyah"},null,null,null,null,null,null,"","",""]
[30,{"$f":"leger!B35","v":1512},{"$f":"leger!C35","v":"Rizky Arya Pratama"},null,null,null,null,null,null,"","",""]
[31,{"$f":"leger!B36","v":1516},{"$f":"leger!C36","v":"Robiyatul Adawiyah"},null,null,null,null,null,null,"","",""]
[32,{"$f":"leger!B37","v":1528},{"$f":"leger!C37","v":"Serlyana Suryatna Putri"},null,null,null,null,null,null,"","",""]
[33,{"$f":"leger!B38","v":1529},{"$f":"leger!C38","v":"Sintya Ayuningtias"},null,null,null,null,null,null,"","",""]
[34,{"$f":"leger!B39","v":1532},{"$f":"leger!C39","v":"Siti Khoirul Nisa"},null,null,null,null,null,null,"","",""]
[35,{"$f":"leger!B40","v":1542},{"$f":"leger!C40","v":"Tiara Fraulinda Hermawan"},null,null,null,null,null,null,"","",""]
[36,{"$f":"leger!B41","v":1552},{"$f":"leger!C41","v":"Wulandari"},null,null,null,null,null,null,"","",""]
[37,{"$f":"leger!B42","v":0},{"$f":"leger!C42","v":0},null,null,null,null,null,null,"","",""]
[38,{"$f":"leger!#REF!","v":{"$error":"#REF!"}},{"$f":"leger!#REF!","v":{"$error":"#REF!"}},null,null,null,null,null,null,"","",""]
[39,{"$f":"leger!#REF!","v":{"$error":"#REF!"}},{"$f":"leger!#REF!","v":{"$error":"#REF!"}},null,null,null,null,null,null,"","",""]
[40,{"$f":"leger!#REF!","v":{"$error":"#REF!"}},{"$f":"leger!#REF!","v":{"$error":"#REF!"}},null,null,null,null,null,null,"","",""]
[41,{"$f":"leger!#REF!","v":{"$error":"#REF!"}},{"$f":"leger!#REF!","v":{"$error":"#REF!"}},null,null,null,null,null,null,"","",""]
[42,{"$f":"leger!B43","v":0},{"$f":"leger!C43","v":0}]
[43,{"$f":"leger!B44","v":0},{"$f":"leger!C44","v":0},null,null,null,null,null,null,"","",""]
[44,{"$f":"leger!B50","v":0},{"$f":"leger!C50","v":0},null,null,null,null,null,null,"","",""]

{"sheet":"DUDI","index":4,"n_rows":0,"n_cols":0,"rows_kept":0,"cut":false,"hidden":false,"merged":[]}

{"sheet":"Prestasi","index":5,"n_rows":47,"n_cols":12,"rows_kept":47,"cut":false,"hidden":false,"merged":[[1,9,1,11],[1,0,2,0],[1,1,2,1],[1,2,2,2],[1,3,1,5],[1,6,1,8]]}
[]
["No.","NIS","Nama Siswa","Jenis Prestasi",null,null,"Peringkat",null,null,"Keterangan"]
[null,null,null,"Prestasi 1","Prestasi 2","Prestasi 3","Prestasi 1","Prestasi 2","Prestasi 3","Prestasi 1","Prestasi 2","Prestasi 3"]
[1,{"$f":"leger!B6","v":1243},{"$f":"leger!C6","v":"Achmad Fauzi"},"Juara lomba lari tingkat Kecamatan",null,null,3,null,null,"lomba lari tingkat kecamatan jagakarsa"]
[2,{"$f":"leger!B7","v":1279},{"$f":"leger!C7","v":"Angga Mahardika"}]
[3,{"$f":"leger!B8","v":1286},{"$f":"leger!C8","v":"Antonio Afif Diansyah"}]
[4,{"$f":"leger!B9","v":1301},{"$f":"leger!C9","v":"Asih Alika Putri"}]
[5,{"$f":"leger!B10","v":1324},{"$f":"leger!C10","v":"Denis Dwi Seftian"}]
[6,{"$f":"leger!B11","v":1325},{"$f":"leger!C11","v":"Dhea Annisa"}]
[7,{"$f":"leger!B12","v":1326},{"$f":"leger!C12","v":"Dhea Kadrianda Fatmah"}]
[8,{"$f":"leger!B13","v":1329},{"$f":"leger!C13","v":"Diandra Putri"}]
[9,{"$f":"leger!B14","v":1353},{"$f":"leger!C14","v":"Farhan Dwi Alfiansyah T."}]
[10,{"$f":"leger!B15","v":1355},{"$f":"leger!C15","v":"Fathan Try Alfiansyah T."}]
[11,{"$f":"leger!B16","v":1357},{"$f":"leger!C16","v":"Fauzan Hisyam Dirhamsyah"}]
[12,{"$f":"leger!B17","v":1362},{"$f":"leger!C17","v":"Fitra Haryadi Setiawan"}]
[13,{"$f":"leger!B18","v":1363},{"$f":"leger!C18","v":"Fitri Hidaningsih"}]
[14,{"$f":"leger!B19","v":1369},{"$f":"leger!C19","v":"Hilda Maulana"}]
[15,{"$f":"leger!B20","v":1370},{"$f":"leger!C20","v":"Hilmi Rayhan Fadil"}]
[16,{"$f":"leger!B21","v":1383},{"$f":"leger!C21","v":"Intan Meydhina Putri"}]
[17,{"$f":"leger!B22","v":1391},{"$f":"leger!C22","v":"Jasmine Putri Ayu Septianingrum"}]
[18,{"$f":"leger!B23","v":1394},{"$f":"leger!C23","v":"Kartika Suwito"}]
[19,{"$f":"leger!B24","v":1404},{"$f":"leger!C24","v":"M. Arda Firdaus"}]
[20,{"$f":"leger!B25","v":1418},{"$f":"leger!C25","v":"Mochammad Syahrul Gunawan"}]
[21,{"$f":"leger!B26","v":1435},{"$f":"leger!C26","v":"Muhammad Abian Zafran"}]
[22,{"$f":"leger!B27","v":1452},{"$f":"leger!C27","v":"Muhammad Purkon"}]
[23,{"$f":"leger!B28","v":1462},{"$f":"leger!C28","v":"Mustika Rahmawati Dewi"}]
[24,{"$f":"leger!B29","v":1463},{"$f":"leger!C29","v":"Mutiara Rhamadana"}]
[25,{"$f":"leger!B30","v":1466},{"$f":"leger!C30","v":"Nadya Rahmah"}]
[26,{"$f":"leger!B31","v":1468},{"$f":"leger!C31","v":"Nia Anisaputri"}]
[27,{"$f":"leger!B32","v":1475},{"$f":"leger!C32","v":"Octania Egy Jatmiko"}]
[28,{"$f":"leger!B33","v":1481},{"$f":"leger!C33","v":"Putri Amelya"}]
[29,{"$f":"leger!B34","v":1511},{"$f":"leger!C34","v":"Rizky Ardiansyah"}]
[30,{"$f":"leger!B35","v":1512},{"$f":"leger!C35","v":"Rizky Arya Pratama"}]
[31,{"$f":"leger!B36","v":1516},{"$f":"leger!C36","v":"Robiyatul Adawiyah"}]
[32,{"$f":"leger!B37","v":1528},{"$f":"leger!C37","v":"Serlyana Suryatna Putri"}]
[33,{"$f":"leger!B38","v":1529},{"$f":"leger!C38","v":"Sintya Ayuningtias"}]
[34,{"$f":"leger!B39","v":1532},{"$f":"leger!C39","v":"Siti Khoirul Nisa"}]
[35,{"$f":"leger!B40","v":1542},{"$f":"leger!C40","v":"Tiara Fraulinda Hermawan"}]
[36,{"$f":"leger!B41","v":1552},{"$f":"leger!C41","v":"Wulandari"}]
[37,{"$f":"leger!B42","v":0},{"$f":"leger!C42","v":0}]
[38,{"$f":"leger!#REF!","v":{"$error":"#REF!"}},{"$f":"leger!#REF!","v":{"$error":"#REF!"}}]
[39,{"$f":"leger!#REF!","v":{"$error":"#REF!"}},{"$f":"leger!#REF!","v":{"$error":"#REF!"}}]
[40,{"$f":"leger!#REF!","v":{"$error":"#REF!"}},{"$f":"leger!#REF!","v":{"$error":"#REF!"}}]
[41,{"$f":"leger!#REF!","v":{"$error":"#REF!"}},{"$f":"leger!#REF!","v":{"$error":"#REF!"}}]
[42,{"$f":"leger!B43","v":0},{"$f":"leger!C43","v":0}]
[43,{"$f":"leger!B44","v":0},{"$f":"leger!C44","v":0}]
[44,{"$f":"leger!B50","v":0},{"$f":"leger!C50","v":0}]